lending/lending_fUSD_20250121
["ID","MTS","AMOUNT","RATE_DAILY","PERIOD"]
[349833969,1737455457180,-500.0,0.00020993,2]
[349833970,1737455457190,-641.35413624,0.00020993,2]
[349833971,1737455457200,-622.22261785,0.00020993,2]
[349833972,1737455457210,-1315.93,0.00020993,2]
[349833973,1737455457220,-500.0,0.00020993,2]
[349833974,1737455457230,-500.0,0.00020993,2]
[349833975,1737455457240,-500.0,0.00020993,2]
[349833976,1737455457251,-500.0,0.00020993,2]
[349833977,1737455457260,-572.22,0.00020993,2]
[349833978,1737455457270,-1893.55436817,0.00021,2]
[349833979,1737455457280,-142210.59200469,0.00021,2]
[349833980,1737455457289,-22709.56445576,0.00021,3]
[349833981,1737455457300,-2880.33855767,0.00021,3]
[349833982,1737455457310,-27195.70087213,0.00021,2]
[349833983,1737455457320,-2258.0,0.00021001,2]
[349833984,1737455457330,-150.0,0.00021014,2]
[349833985,1737455457339,-191.27,0.00021014,2]
[349833986,1737455457349,-321.61,0.00021014,2]
[349833987,1737455457359,-1208.63,0.00021032,2]
[349833988,1737455457369,-720.29,0.00021032,2]
[349833989,1737455457379,-1135.55,0.00021032,2]
[349833990,1737455457388,-500.0,0.00021032,2]
[349833991,1737455457398,-5596.85,0.00021032,2]
[349833992,1737455457409,-500.0,0.00021032,2]
[349833993,1737455457419,-500.0,0.00021032,2]
[349833994,1737455457433,-516.225877,0.00021032,2]
[349833995,1737455457442,-786.72,0.00021032,2]
[349833996,1737455457452,-771.63,0.00021032,2]
[349833997,1737455457461,-543.76,0.00021032,2]
[349833998,1737455457472,-1177.6,0.00021032,2]
[349833999,1737455457482,-798.31,0.00021032,2]
[349834000,1737455457491,-358.333386,0.00021032,2]
[349834001,1737455457500,-1292.4,0.00021032,2]
[349834002,1737455457512,-941.38,0.00021032,2]
[349834003,1737455457522,-500.0,0.00021032,2]
[349834004,1737455457532,-500.0,0.00021032,2]
[349834005,1737455457542,-2147.55,0.00021032,2]
[349834006,1737455457551,-1700.18,0.00021032,2]
[349834007,1737455457561,-801.99,0.00021032,2]
[349834008,1737455457571,-987.08,0.00021032,2]
[349834009,1737455457581,-1814.27,0.00021032,2]
[349834010,1737455457591,-2064.99,0.00021032,2]
[349834011,1737455457601,-500.0,0.00021032,2]
[349834012,1737455457611,-551.16,0.00021032,2]
[349834013,1737455457620,-905.56,0.00021032,2]
[349834014,1737455457630,-2404.18,0.00021032,2]
[349834015,1737455457640,-841.45,0.00021032,2]
[349834016,1737455457650,-844.09,0.00021032,2]
[349834017,1737455457660,-711.51,0.00021032,2]
[349834018,1737455457671,-934.55,0.00021032,2]
[349834019,1737455457680,-162.85,0.00021033,2]
[349834020,1737455457689,-500.0,0.00021033,2]
[349834021,1737455457699,-500.0,0.00021033,2]
[349834022,1737455457709,-291.68302449,0.00021033,2]
[349834023,1737455457718,-500.0,0.00021033,2]
[349834024,1737455457728,-500.0,0.00021033,2]
[349834025,1737455457737,-500.0,0.00021033,2]
[349834026,1737455457746,-500.0,0.00021033,2]
[349834027,1737455457755,-500.0,0.00021033,2]
[349834028,1737455457765,-1407.85,0.00021033,2]
[349834029,1737455457775,-500.0,0.00021033,2]
[349834030,1737455457785,-500.0,0.00021033,2]
[349834031,1737455457795,-622.64,0.00021033,2]
[349834032,1737455457805,-667.61,0.00021033,2]
[349834033,1737455457815,-500.0,0.00021033,2]
[349834034,1737455457825,-1000.0,0.00021033,2]
[349834035,1737455457835,-766.15,0.00021033,2]
[349834036,1737455457845,-500.0,0.00021033,2]
[349834037,1737455457855,-500.0,0.00021033,2]
[349834038,1737455457864,-1281.06,0.00021033,2]
[349834039,1737455457874,-500.0,0.00021034,2]
[349834040,1737455457883,-500.0,0.00021034,2]
[349834041,1737455457893,-500.0,0.00021034,2]
[349834042,1737455457904,-500.0,0.00021034,2]
[349834043,1737455457913,-500.0,0.00021034,2]
[349834044,1737455457923,-500.0,0.00021034,2]
[349834045,1737455457932,-500.0,0.00021034,2]
[349834046,1737455457944,-500.0,0.00021034,2]
[349834047,1737455457954,-500.0,0.00021034,2]
[349834048,1737455457963,-500.0,0.00021034,2]
[349834049,1737455457973,-500.0,0.00021034,2]
[349834050,1737455457983,-603.44388083,0.00021034,2]
[349834051,1737455457993,-500.0,0.00021034,2]
[349834052,1737455458002,-500.0,0.00021034,2]
[349834053,1737455458012,-500.0,0.00021034,2]
[349834054,1737455458022,-500.0,0.00021034,2]
[349834055,1737455458031,-500.0,0.00021034,2]
[349834056,1737455458041,-500.0,0.00021034,2]
[349834057,1737455458050,-500.0,0.00021034,2]
[349834058,1737455458060,-500.0,0.00021034,2]
[349834059,1737455458070,-500.0,0.00021034,2]
[349834060,1737455458080,-500.0,0.00021034,2]
[349834061,1737455458090,-723.84,0.00021034,2]
[349834062,1737455458099,-1160.98,0.00021034,2]
[349834063,1737455458109,-262.49295127,0.00021034,2]
[349834064,1737455458119,-724.95,0.00021034,2]
[349834065,1737455458128,-500.0,0.00021034,2]
[349834066,1737455458138,-1973.65,0.00021034,2]
[349834067,1737455458148,-763.12,0.00021034,2]
[349834068,1737455458159,-500.0,0.00021034,2]
[349834069,1737455458168,-500.0,0.00021034,2]
[349834070,1737455458178,-1105.07,0.00021034,2]
[349834071,1737455458187,-500.0,0.00021034,2]
[349834072,1737455458197,-807.04,0.00021034,2]
[349834073,1737455458206,-500.0,0.00021034,2]
[349834074,1737455458216,-500.0,0.00021034,2]
[349834075,1737455458226,-500.0,0.00021034,2]
[349834076,1737455458236,-997.87,0.00021034,2]
[349834077,1737455458249,-500.0,0.00021034,2]
[349834078,1737455458259,-500.0,0.00021034,2]
[349834079,1737455458269,-500.0,0.00021034,2]
[349834080,1737455458280,-634.09,0.00021034,2]
[349834081,1737455458290,-500.0,0.00021034,2]
[349834082,1737455458300,-500.0,0.00021034,2]
[349834083,1737455458310,-500.0,0.00021034,2]
[349834084,1737455458319,-500.0,0.00021034,2]
[349834085,1737455458329,-500.0,0.00021034,2]
[349834086,1737455458339,-407.27023133,0.00021034,2]
[349834087,1737455458349,-522.9,0.00021034,2]
[349834088,1737455458358,-500.0,0.00021034,2]
[349834089,1737455458368,-500.0,0.00021034,2]
[349834090,1737455458377,-500.0,0.00021034,2]
[349834091,1737455458387,-500.0,0.00021034,2]
[349834092,1737455458396,-500.0,0.00021034,2]
[349834093,1737455458406,-632.31,0.00021034,2]
[349834094,1737455458416,-537.56,0.00021034,2]
[349834095,1737455458427,-500.0,0.00021034,2]
[349834096,1737455458440,-500.0,0.00021034,2]
[349834097,1737455458450,-924.73,0.00021034,2]
[349834098,1737455458461,-500.0,0.00021034,2]
[349834099,1737455458470,-500.0,0.00021034,2]
[349834100,1737455458481,-638.62,0.00021034,2]
[349834101,1737455458491,-500.0,0.00021034,2]
[349834102,1737455458501,-500.0,0.00021034,2]
[349834103,1737455458511,-1669.61,0.00021034,2]
[349834104,1737455458521,-500.0,0.00021034,2]
[349834105,1737455458532,-500.0,0.00021034,2]
[349834106,1737455458542,-2780.73,0.00021034,2]
[349834107,1737455458552,-500.0,0.00021035,2]
[349834108,1737455458563,-396.09643431,0.00021056,2]
[349834109,1737455458573,-206.70261586,0.00021082,2]
[349834110,1737455458584,-896.64,0.00021095,2]
[349834111,1737455458594,-802.54,0.00021095,2]
[349834112,1737455458604,-599.33,0.00021095,2]
[349834113,1737455458615,-1130.76,0.00021095,2]
[349834114,1737455458624,-1764.8,0.00021095,2]
[349834115,1737455458635,-1170.87,0.00021095,2]
[349834116,1737455458644,-1935.46,0.00021095,2]
[349834117,1737455458655,-500.0,0.00021095,2]
[349834118,1737455458665,-1397.15,0.00021095,2]
[349834119,1737455458675,-888.75,0.00021095,2]
[349834120,1737455458684,-997.88,0.00021095,2]
[349834121,1737455458694,-709.63,0.00021095,2]
[349834122,1737455458703,-902.94,0.00021095,2]
[349834123,1737455458713,-2544.76,0.00021095,2]
[349834124,1737455458723,-850.52,0.00021095,2]
[349834125,1737455458733,-2292.3,0.00021095,2]
[349834126,1737455458743,-500.0,0.00021095,2]
[349834127,1737455458753,-543.61,0.00021095,2]
[349834128,1737455458763,-500.0,0.00021095,2]
[349834129,1737455458774,-1534.04,0.00021095,2]
[349834130,1737455458784,-1237.06,0.00021095,2]
[349834131,1737455458794,-264093.65918513,0.00021108,2]
[349834132,1737455458804,-151.0,0.00021108,2]
[349834133,1737455458820,-83811.15108223,0.00021129,2]
[349834134,1737455458830,-300.0,0.00021142,2]
[349834135,1737455458840,-1000.0,0.00021145,2]
[349834136,1737455458850,-152.0,0.00021173,3]
[349834137,1737455458860,-500.0,0.00021178,2]
[349834138,1737455458869,-150.0,0.00021178,2]
[349834139,1737455458878,-150.0,0.00021178,2]
[349834140,1737455458888,-150.0,0.00021178,2]
[349834141,1737455458897,-150.0,0.00021194,2]
[349834142,1737455458908,-150.0,0.00021194,2]
[349834143,1737455458918,-396.09643431,0.00021254,2]
[349834144,1737455458928,-1132.8,0.00021266,2]
[349834145,1737455458939,-500.0,0.00021266,2]
[349834146,1737455458948,-758.65,0.00021266,2]
[349834147,1737455458957,-500.0,0.00021267,2]
[349834148,1737455458967,-500.0,0.00021267,2]
[349834149,1737455458977,-500.0,0.00021267,2]
[349834150,1737455458987,-500.0,0.00021267,2]
[349834151,1737455458997,-500.0,0.00021267,2]
[349834152,1737455459006,-196.79,0.00021267,2]
[349834153,1737455459015,-849.01,0.00021267,2]
[349834154,1737455459025,-500.0,0.00021267,2]
[349834155,1737455459034,-500.0,0.00021267,2]
[349834156,1737455459043,-500.0,0.00021267,2]
[349834157,1737455459052,-500.0,0.00021267,2]
[349834158,1737455459062,-500.0,0.00021267,2]
[349834159,1737455459071,-418.74122655,0.00021267,2]
[349834160,1737455459081,-500.0,0.00021267,2]
[349834161,1737455459091,-500.0,0.00021267,2]
[349834162,1737455459100,-186.98900626,0.00021267,2]
[349834163,1737455459110,-500.0,0.00021267,2]
[349834164,1737455459119,-238.36526503,0.00021267,2]
[349834165,1737455459129,-525.58,0.00021267,2]
[349834166,1737455459139,-1799.36,0.00021267,2]
[349834167,1737455459148,-500.0,0.00021267,2]
[349834168,1737455459158,-2685.0,0.00021267,2]
[349834169,1737455459167,-300.0,0.00021267,2]
[349834170,1737455459177,-528.56,0.00021267,2]
[349834171,1737455459187,-500.0,0.00021267,2]
[349834172,1737455459197,-500.0,0.00021267,2]
[349834173,1737455459207,-1519.25,0.00021267,2]
[349834174,1737455459217,-500.0,0.00021267,2]
[349834175,1737455459227,-621.54448458,0.00021267,2]
[349834176,1737455459237,-500.0,0.00021267,2]
[349834177,1737455459292,-500.0,0.00021267,2]
[349834178,1737455459303,-500.0,0.00021267,2]
[349834179,1737455459312,-500.0,0.00021267,2]
[349834180,1737455459322,-500.0,0.00021267,2]
[349834181,1737455459332,-500.0,0.00021267,2]
[349834182,1737455459342,-500.0,0.00021267,2]
[349834183,1737455459351,-500.0,0.00021267,2]
[349834184,1737455459361,-1429.36,0.00021267,2]
[349834185,1737455459371,-500.0,0.00021267,2]
[349834186,1737455459380,-500.0,0.00021267,2]
[349834187,1737455459390,-500.0,0.00021267,2]
[349834188,1737455459399,-503.50850436,0.00021267,2]
[349834189,1737455459409,-512.40440752,0.00021267,2]
[349834190,1737455459419,-500.0,0.00021267,2]
[349834191,1737455459432,-500.0,0.00021267,2]
[349834192,1737455459442,-500.0,0.00021267,2]
[349834193,1737455459451,-500.0,0.00021267,2]
[349834194,1737455459461,-1315.93,0.00021267,2]
[349834195,1737455459470,-500.0,0.00021267,2]
[349834196,1737455459481,-505.6582109,0.00021267,2]
[349834197,1737455459491,-500.0,0.00021267,2]
[349834198,1737455459500,-500.0,0.00021267,2]
[349834199,1737455459510,-572.22,0.00021267,2]
[349834200,1737455459520,-150.0,0.00021272,2]
[349834201,1737455459529,-32601.33711206,0.000213,2]
[349834202,1737455459539,-1200.0,0.000213,7]
[349834203,1737455459549,-4367.61256621,0.000213,2]
[349834204,1737455459559,-1208.63,0.00021306,2]
[349834205,1737455459568,-720.29,0.00021306,2]
[349834206,1737455459578,-1135.55,0.00021306,2]
[349834207,1737455459587,-500.0,0.00021306,2]
[349834208,1737455459596,-5596.85,0.00021306,2]
[349834209,1737455459605,-500.0,0.00021306,2]
[349834210,1737455459615,-500.0,0.00021306,2]
[349834211,1737455459625,-516.225877,0.00021306,2]
[349834212,1737455459634,-786.72,0.00021306,2]
[349834213,1737455459643,-771.63,0.00021306,2]
[349834214,1737455459653,-543.76,0.00021306,2]
[349834215,1737455459664,-1177.6,0.00021306,2]
[349834216,1737455459673,-798.31,0.00021306,2]
[349834217,1737455459682,-358.333386,0.00021306,2]
[349834218,1737455459691,-1292.4,0.00021306,2]
[349834219,1737455459700,-941.38,0.00021306,2]
[349834220,1737455459710,-500.0,0.00021306,2]
[349834221,1737455459719,-500.0,0.00021306,2]
[349834222,1737455459728,-160.021937,0.00021306,2]
[349834223,1737455459738,-2147.55,0.00021306,2]
[349834224,1737455459747,-1700.18,0.00021306,2]
[349834225,1737455459757,-801.99,0.00021306,2]
[349834226,1737455459767,-987.08,0.00021306,2]
[349834227,1737455459777,-1814.27,0.00021306,2]
[349834228,1737455459786,-172.514459,0.00021306,2]
[349834229,1737455459796,-2064.99,0.00021306,2]
[349834230,1737455459806,-500.0,0.00021306,2]
[349834231,1737455459815,-551.16,0.00021306,2]
[349834232,1737455459825,-905.56,0.00021306,2]
[349834233,1737455459835,-153.133225,0.00021306,2]
[349834234,1737455459844,-2404.18,0.00021306,2]
[349834235,1737455459854,-841.45,0.00021306,2]
[349834236,1737455459863,-172.514455,0.00021306,2]
[349834237,1737455459873,-844.09,0.00021306,2]
[349834238,1737455459883,-711.51,0.00021306,2]
[349834239,1737455459893,-934.55,0.00021306,2]
[349834240,1737455459902,-500.0,0.00021307,2]
[349834241,1737455459915,-500.0,0.00021307,2]
[349834242,1737455459924,-436.66405097,0.00021307,2]
[349834243,1737455459933,-500.0,0.00021307,2]
[349834244,1737455459943,-500.0,0.00021307,2]
[349834245,1737455459953,-500.0,0.00021307,2]
[349834246,1737455459962,-500.0,0.00021307,2]
[349834247,1737455459971,-1407.85,0.00021307,2]
[349834248,1737455459980,-183.36478677,0.00021307,2]
[349834249,1737455459989,-500.0,0.00021307,2]
[349834250,1737455459999,-622.64,0.00021307,2]
[349834251,1737455460009,-667.61,0.00021307,2]
[349834252,1737455460018,-500.0,0.00021307,2]
[349834253,1737455460027,-1000.0,0.00021307,2]
[349834254,1737455460037,-766.15,0.00021307,2]
[349834255,1737455460047,-500.0,0.00021307,2]
[349834256,1737455460058,-500.0,0.00021307,2]
[349834257,1737455460068,-1281.06,0.00021307,2]
[349834258,1737455460078,-161.384238,0.00021307,2]
[349834259,1737455460088,-151.0,0.00021307,2]
[349834260,1737455460097,-151.0,0.00021307,2]
[349834261,1737455460107,-1230.646383,0.00021307,2]
[349834262,1737455460116,-1230.646383,0.00021307,2]
[349834263,1737455460126,-500.0,0.00021308,2]
[349834264,1737455460136,-500.0,0.00021308,2]
[349834265,1737455460145,-500.0,0.00021308,2]
[349834266,1737455460155,-500.0,0.00021308,2]
[349834267,1737455460165,-500.0,0.00021308,2]
[349834268,1737455460174,-500.0,0.00021308,2]
[349834269,1737455460183,-500.0,0.00021308,2]
[349834270,1737455460192,-500.0,0.00021308,2]
[349834271,1737455460201,-608.96082311,0.00021308,2]
[349834272,1737455460210,-500.0,0.00021308,2]
[349834273,1737455460219,-500.0,0.00021308,2]
[349834274,1737455460229,-500.0,0.00021308,2]
[349834275,1737455460239,-500.0,0.00021308,2]
[349834276,1737455460249,-500.0,0.00021308,2]
[349834277,1737455460259,-500.0,0.00021308,2]
[349834278,1737455460268,-500.0,0.00021308,2]
[349834279,1737455460278,-500.0,0.00021308,2]
[349834280,1737455460287,-500.0,0.00021308,2]
[349834281,1737455460296,-500.0,0.00021308,2]
[349834282,1737455460306,-500.0,0.00021308,2]
[349834283,1737455460315,-500.0,0.00021308,2]
[349834284,1737455460325,-723.84,0.00021308,2]
[349834285,1737455460334,-1160.98,0.00021308,2]
[349834286,1737455460345,-724.95,0.00021308,2]
[349834287,1737455460354,-500.0,0.00021308,2]
[349834288,1737455460364,-1973.65,0.00021308,2]
[349834289,1737455460373,-763.12,0.00021308,2]
[349834290,1737455460383,-500.0,0.00021308,2]
[349834291,1737455460392,-500.0,0.00021308,2]
[349834292,1737455460402,-1105.07,0.00021308,2]
[349834293,1737455460413,-500.0,0.00021308,2]
[349834294,1737455460423,-807.04,0.00021308,2]
[349834295,1737455460432,-500.0,0.00021308,2]
[349834296,1737455460445,-500.0,0.00021308,2]
[349834297,1737455460455,-500.0,0.00021308,2]
[349834298,1737455460464,-997.87,0.00021308,2]
[349834299,1737455460473,-500.0,0.00021308,2]
[349834300,1737455460484,-500.0,0.00021308,2]
[349834301,1737455460494,-500.0,0.00021308,2]
[349834302,1737455460503,-634.09,0.00021308,2]
[349834303,1737455460515,-500.0,0.00021308,2]
[349834304,1737455460524,-500.0,0.00021308,2]
[349834305,1737455460533,-500.0,0.00021308,2]
[349834306,1737455460543,-500.0,0.00021308,2]
[349834307,1737455460552,-522.9,0.00021308,2]
[349834308,1737455460561,-500.0,0.00021308,2]
[349834309,1737455460574,-500.0,0.00021308,2]
[349834310,1737455460584,-500.0,0.00021308,2]
[349834311,1737455460593,-500.0,0.00021308,2]
[349834312,1737455460603,-500.0,0.00021308,2]
[349834313,1737455460613,-632.31,0.00021308,2]
[349834314,1737455460623,-537.56,0.00021308,2]
[349834315,1737455460633,-500.0,0.00021308,2]
[349834316,1737455460643,-585.37564464,0.00021308,2]
[349834317,1737455460653,-924.73,0.00021308,2]
[349834318,1737455460665,-500.0,0.00021308,2]
[349834319,1737455460675,-500.0,0.00021308,2]
[349834320,1737455460684,-638.62,0.00021308,2]
[349834321,1737455460694,-500.0,0.00021308,2]
[349834322,1737455460704,-500.0,0.00021308,2]
[349834323,1737455460714,-1669.61,0.00021308,2]
[349834324,1737455460724,-500.0,0.00021308,2]
[349834325,1737455460733,-500.0,0.00021308,2]
[349834326,1737455460743,-2780.73,0.00021308,2]
[349834327,1737455460753,-500.0,0.00021309,2]
[349834328,1737455460763,-250.0,0.00021321,2]
[349834329,1737455460773,-150.0,0.00021321,2]
[349834330,1737455460782,-1164.72,0.00021332,2]
[349834331,1737455460792,-150.0,0.00021358,2]
[349834332,1737455460802,-896.64,0.00021369,2]
[349834333,1737455460812,-802.54,0.00021369,2]
[349834334,1737455460821,-599.33,0.00021369,2]
[349834335,1737455460832,-1130.76,0.00021369,2]
[349834336,1737455460842,-1764.8,0.00021369,2]
[349834337,1737455460852,-1170.87,0.00021369,2]
[349834338,1737455460862,-1935.46,0.00021369,2]
[349834339,1737455460872,-500.0,0.00021369,2]
[349834340,1737455460882,-1397.15,0.00021369,2]
[349834341,1737455460892,-888.75,0.00021369,2]
[349834342,1737455460902,-997.88,0.00021369,2]
[349834343,1737455460915,-709.63,0.00021369,2]
[349834344,1737455460926,-902.94,0.00021369,2]
[349834345,1737455460936,-2544.76,0.00021369,2]
[349834346,1737455460947,-850.52,0.00021369,2]
[349834347,1737455460957,-2292.3,0.00021369,2]
[349834348,1737455460967,-500.0,0.00021369,2]
[349834349,1737455460977,-543.61,0.00021369,2]
[349834350,1737455460987,-500.0,0.00021369,2]
[349834351,1737455460997,-1534.04,0.00021369,2]
[349834352,1737455461007,-1237.06,0.00021369,2]
[349834353,1737455461017,-1921.413091,0.00021386,2]
[349834354,1737455461027,-500.0,0.00021399,2]
[349834355,1737455461037,-506.99781126,0.00021399,2]
[349834356,1737455461047,-200.0,0.000214,7]
[349834357,1737455461057,-100603.9945,0.000214,2]
[349834358,1737455461067,-6567.6991,0.000214,2]
[349834359,1737455461078,-500.0,0.000214,2]
[349834360,1737455461088,-804.6619,0.000214,2]
[349834361,1737455461098,-23119.9489,0.000214,2]
[349834362,1737455461108,-36172.1816,0.000214,2]
[349834363,1737455461117,-167.84384316,0.000214,2]
[349834364,1737455461128,-8638.43464795,0.000214,2]
[349834365,1737455461138,-151.0,0.000214,2]
[349834366,1737455461148,-151.0,0.000214,2]
[349834367,1737455461161,-1179.906541,0.000214,2]
[349834368,1737455461172,-241.338884,0.000214,2]
[349834369,1737455461182,-1179.906541,0.000214,2]
[349834370,1737455461192,-241.338884,0.000214,2]
[349834371,1737455461202,-151.0,0.000214,2]
[349834372,1737455461212,-151.0,0.000214,2]
[349834373,1737455461222,-1000.0,0.000214,2]
[349834374,1737455461232,-161.28319967,0.000214,2]
[349834375,1737455461243,-165.86636039,0.00021407,2]
[349834376,1737455461254,-174.89384677,0.00021415,2]
[349834377,1737455461265,-791.2183969,0.00021433,2]
[349834378,1737455461275,-206.70261586,0.00021491,2]
[349834379,1737455461285,-168.44062801,0.00021498,2]
[349834380,1737455461295,-758.65,0.00021498,2]
[349834381,1737455461305,-500.0,0.00021499,2]
[349834382,1737455461315,-507.84559888,0.00021499,2]
[349834383,1737455461325,-758.65,0.00021499,2]
[349834384,1737455461335,-999.0,0.00021499,2]
[349834385,1737455461346,-1001.23671071,0.000215,2]
[349834386,1737455461356,-2450767.97794381,0.000215,2]
[349834387,1737455461366,-467160.11151543,0.000215,4]
[349834388,1737455461375,-2110.0,0.000215,2]
[349834389,1737455461385,-151.0,0.000215,2]
[349834390,1737455461394,-200.0,0.000215,7]
[349834391,1737455461404,-151.0,0.000215,2]
[349834392,1737455461416,-942.015304,0.000215,2]
[349834393,1737455461427,-151.834209,0.000215,2]
[349834394,1737455461439,-942.015304,0.000215,2]
[349834395,1737455461450,-2211.18,0.000215,2]
[349834396,1737455461460,-151.0,0.000215,2]
[349834397,1737455461471,-157.74491,0.000215,2]
[349834398,1737455461481,-1230.646383,0.000215,2]
[349834399,1737455461491,-1230.646383,0.000215,2]
[349834400,1737455461501,-151.0,0.000215,2]
[349834401,1737455461511,-758.65,0.0002154,2]
[349834402,1737455461521,-500.0,0.00021541,2]
[349834403,1737455461531,-500.0,0.00021541,2]
[349834404,1737455461541,-500.0,0.00021541,2]
[349834405,1737455461550,-500.0,0.00021541,2]
[349834406,1737455461560,-500.0,0.00021541,2]
[349834407,1737455461571,-849.01,0.00021541,2]
[349834408,1737455461580,-500.0,0.00021541,2]
[349834409,1737455461590,-371.61206049,0.00021541,2]
[349834410,1737455461599,-500.0,0.00021541,2]
[349834411,1737455461609,-500.0,0.00021541,2]
[349834412,1737455461619,-500.0,0.00021541,2]
[349834413,1737455461629,-500.0,0.00021541,2]
[349834414,1737455461638,-500.0,0.00021541,2]
[349834415,1737455461648,-500.0,0.00021541,2]
[349834416,1737455461660,-1799.36,0.00021541,2]
[349834417,1737455461670,-231.46223064,0.00021541,2]
[349834418,1737455461681,-2685.0,0.00021541,2]
[349834419,1737455461691,-300.0,0.00021541,2]
[349834420,1737455461701,-528.56,0.00021541,2]
[349834421,1737455461711,-500.0,0.00021541,2]
[349834422,1737455461721,-500.0,0.00021541,2]
[349834423,1737455461731,-1519.25,0.00021541,2]
[349834424,1737455461741,-279.16344139,0.00021541,2]
[349834425,1737455461751,-500.0,0.00021541,2]
[349834426,1737455461761,-500.0,0.00021541,2]
[349834427,1737455461771,-500.0,0.00021541,2]
[349834428,1737455461780,-500.0,0.00021541,2]
[349834429,1737455461790,-500.0,0.00021541,2]
[349834430,1737455461801,-500.0,0.00021541,2]
[349834431,1737455461811,-500.0,0.00021541,2]
[349834432,1737455461821,-500.0,0.00021541,2]
[349834433,1737455461830,-1429.36,0.00021541,2]
[349834434,1737455461841,-500.0,0.00021541,2]
[349834435,1737455461851,-512.07397301,0.00021541,2]
[349834436,1737455461860,-500.0,0.00021541,2]
[349834437,1737455461870,-500.0,0.00021541,2]
[349834438,1737455461881,-500.0,0.00021541,2]
[349834439,1737455461891,-500.0,0.00021541,2]
[349834440,1737455461902,-177.87754488,0.00021541,2]
[349834441,1737455461914,-1315.93,0.00021541,2]
[349834442,1737455461926,-513.63101253,0.00021541,2]
[349834443,1737455461937,-500.0,0.00021541,2]
[349834444,1737455461947,-215.11823575,0.00021541,2]
[349834445,1737455461957,-572.22,0.00021541,2]
[349834446,1737455461968,-771.69,0.00021547,2]
[349834447,1737455461977,-1208.63,0.0002158,2]
[349834448,1737455461987,-720.29,0.0002158,2]
[349834449,1737455461997,-1135.55,0.0002158,2]
[349834450,1737455462007,-500.0,0.0002158,2]
[349834451,1737455462018,-5596.85,0.0002158,2]
[349834452,1737455462028,-500.0,0.0002158,2]
[349834453,1737455462039,-500.0,0.0002158,2]
[349834454,1737455462049,-516.225877,0.0002158,2]
[349834455,1737455462059,-786.72,0.0002158,2]
[349834456,1737455462069,-771.63,0.0002158,2]
[349834457,1737455462078,-543.76,0.0002158,2]
[349834458,1737455462088,-1177.6,0.0002158,2]
[349834459,1737455462099,-798.31,0.0002158,2]
[349834460,1737455462109,-1292.4,0.0002158,2]
[349834461,1737455462118,-358.333386,0.0002158,2]
[349834462,1737455462128,-941.38,0.0002158,2]
[349834463,1737455462138,-500.0,0.0002158,2]
[349834464,1737455462148,-500.0,0.0002158,2]
[349834465,1737455462160,-2147.55,0.0002158,2]
[349834466,1737455462170,-1700.18,0.0002158,2]
[349834467,1737455462180,-801.99,0.0002158,2]
[349834468,1737455462189,-987.08,0.0002158,2]